fUST/lending_fUST_20240505
["ID","MTS","AMOUNT","RATE_DAILY","PERIOD"]
[325432404,1714883239092,-500.0,0.00020913,2]
[325432405,1714883239112,-500.0,0.00020913,2]
[325432406,1714883239132,-500.0,0.00020913,2]
[325432407,1714883239153,-500.0,0.00020913,2]
[325432408,1714883239174,-500.0,0.00020913,2]
[325432409,1714883239199,-351.76301643,0.00020913,2]
[325432410,1714883239220,-500.0,0.00020913,2]
[325432411,1714883239240,-454.88084004,0.00020913,2]
[325432412,1714883239261,-500.0,0.00020913,2]
[325432413,1714883239282,-500.0,0.00020913,2]
[325432414,1714883239302,-500.0,0.00020913,2]
[325432415,1714883239321,-500.0,0.00020913,2]
[325432416,1714883239341,-650.0,0.00020913,2]
[325432417,1714883239363,-365.06126725,0.00020913,2]
[325432418,1714883239383,-500.0,0.00020913,2]
[325432419,1714883239409,-500.0,0.00020913,2]
[325432420,1714883239429,-500.0,0.00020913,2]
[325432421,1714883239450,-500.0,0.00020913,2]
[325432422,1714883239470,-500.0,0.00020913,2]
[325432423,1714883239490,-500.0,0.00020913,2]
[325432424,1714883239509,-307.39641742,0.00020913,2]
[325432425,1714883239529,-500.0,0.00020913,2]
[325432426,1714883239550,-500.0,0.00020913,2]
[325432427,1714883239570,-500.0,0.00020913,2]
[325432428,1714883239589,-620.00000862,0.00020917,2]
[325432429,1714883239609,-1093.96,0.00020931,2]
[325432430,1714883239630,-150.0,0.00020942,3]
[325432431,1714883239649,-219.4,0.00020942,3]
[325432432,1714883239668,-1093.96,0.00020986,2]
[325432433,1714883239688,-2502.38,0.00021,2]
[325432434,1714883239708,-1093.96,0.0002104,2]
[325432435,1714883239728,-1093.96,0.00021095,2]
[325432436,1714883239748,-1093.96,0.0002115,2]
[325432437,1714883239768,-169.2983552,0.00021196,2]
[325432438,1714883239789,-1093.96,0.00021205,2]
[325432439,1714883239810,-150.0,0.00021236,3]
[325432440,1714883239830,-219.4,0.00021236,3]
[325432441,1714883239850,-1094.0869598,0.0002126,2]
[325432442,1714883239872,-150.0,0.00021529,3]
[325432443,1714883239892,-219.4,0.00021529,3]
[325432444,1714883239914,-151.0,0.00021536,2]
[325432445,1714883239935,-385.63372527,0.00021815,2]
[325432446,1714883239955,-332.70815405,0.00021815,2]
[325432447,1714883239978,-500.0,0.00021815,2]
[325432448,1714883239997,-220.67234021,0.00021815,2]
[325432449,1714883240017,-2000.0,0.00021817,2]
[325432450,1714883240037,-169.2983552,0.00021817,2]
[325432451,1714883240058,-1389.94081889,0.00021817,2]
[325432452,1714883240077,-219.4,0.00021823,3]
[325432453,1714883240097,-1389.94081883,0.00021846,2]
[325432454,1714883240119,-1389.94081883,0.00021874,2]
[325432455,1714883240140,-1389.94081883,0.00021903,2]
[325432456,1714883240160,-235.53727081,0.00021915,2]
[325432457,1714883240181,-6220.57968343,0.00021916,2]
[325432458,1714883240200,-16238.44400231,0.00021916,2]
[325432493,1714883438109,-2.09356568,0.00019793,3]
[325432494,1714883438138,-147.90643432,0.00019793,3]
[325432495,1714883438147,-150.0,0.00020084,3]
[325432496,1714883438157,-150.0,0.00020376,3]
[325432497,1714883438166,-493.0,0.00020456,2]
[325432498,1714883438176,-150.0,0.00020667,3]
[325432499,1714883438185,-4418.31696967,0.00020913,2]
[325432896,1714883445876,-150.0,0.00020456,2]
[325432898,1714883445885,-581.68303033,0.00020913,2]
[325432900,1714883445895,-150.0,0.00020959,3]
[325432902,1714883445904,-500.0,0.00021816,2]
[325432904,1714883445913,-161.65342667,0.00021816,2]
[325432906,1714883445923,-500.0,0.00021816,2]
[325432908,1714883445932,-207.2290297,0.00021816,2]
[325432910,1714883445941,-500.0,0.00021816,2]
[325432912,1714883445951,-615.0,0.00021816,2]
[325432914,1714883445961,-55555.0,0.00021817,3]
[325432916,1714883445970,-2000.0,0.00021817,2]
[325432918,1714883445979,-694.97040945,0.00021817,2]
[325432920,1714883445988,-252.82598548,0.00021837,2]
[325432922,1714883445997,-694.97040941,0.00021846,2]
[325432924,1714883446007,-694.97040941,0.00021874,2]
[325432926,1714883446016,-694.97040941,0.00021903,2]
[325432928,1714883446025,-3596.74455457,0.00021915,2]
[325432930,1714883446034,-309.40454608,0.00021915,2]
[325432932,1714883446043,-5505.77920503,0.00021916,2]
[325432934,1714883446052,-165.27159655,0.00021916,2]
[325432936,1714883446062,-308.85957437,0.00021916,2]
[325432938,1714883446071,-700.93023386,0.00021917,2]
[325432940,1714883446081,-500.0,0.00021917,2]
[325432942,1714883446090,-500.0,0.00021917,2]
[325432944,1714883446099,-500.0,0.00021917,2]
[325432946,1714883446108,-549.74239131,0.00021917,2]
[325432948,1714883446117,-500.0,0.00021917,2]
[325432950,1714883446126,-500.0,0.00021917,2]
[325432952,1714883446135,-500.0,0.00021917,2]
[325432954,1714883446144,-500.0,0.00021917,2]
[325432955,1714883446153,-500.0,0.00021917,2]
[325432957,1714883446163,-500.0,0.00021917,2]
[325432959,1714883446172,-500.0,0.00021917,2]
[325432961,1714883446181,-500.0,0.00021917,2]
[325432963,1714883446191,-500.0,0.00021917,2]
[325432965,1714883446200,-500.0,0.00021917,2]
[325432967,1714883446209,-500.0,0.00021917,2]
[325432969,1714883446218,-500.0,0.00021917,2]
[325432971,1714883446227,-508.09704747,0.00021917,2]
[325432973,1714883446237,-916.07,0.00021917,2]
[325432975,1714883446246,-500.0,0.00021917,2]
[325432977,1714883446256,-503.70057125,0.00021917,2]
[325432979,1714883446265,-500.0,0.00021917,2]
[325432981,1714883446274,-500.0,0.00021917,2]
[325432983,1714883446284,-500.0,0.00021917,2]
[325432985,1714883446293,-500.0,0.00021917,2]
[325432987,1714883446302,-1000.0,0.00021917,2]
[325432989,1714883446311,-492.58860469,0.00021917,2]
[325432991,1714883446320,-539.03943288,0.00021917,2]
[325432992,1714883446329,-500.0,0.00021917,2]
[325432994,1714883446338,-502.43568003,0.00021917,2]
[325432996,1714883446347,-500.0,0.00021917,2]
[325432998,1714883446356,-495.32470709,0.00021917,2]
[325433000,1714883446365,-500.0,0.00021917,2]
[325433002,1714883446374,-503.05582417,0.00021917,2]
[325433004,1714883446384,-500.0,0.00021917,2]
[325433006,1714883446393,-500.0,0.00021917,2]
[325433008,1714883446402,-545.84,0.00021917,2]
[325433010,1714883446411,-627.35,0.00021917,2]
[325433012,1714883446420,-500.0,0.00021917,2]
[325433014,1714883446433,-545.06457917,0.00021917,2]
[325433016,1714883446442,-500.0,0.00021917,2]
[325433018,1714883446451,-500.0,0.00021917,2]
[325433020,1714883446460,-500.0,0.00021917,2]
[325433022,1714883446471,-500.0,0.00021917,2]
[325433024,1714883446480,-505.26813756,0.00021917,2]
[325433026,1714883446489,-563.53,0.00021917,2]
[325433028,1714883446498,-500.0,0.00021917,2]
[325433030,1714883446507,-500.0,0.00021917,2]
[325433032,1714883446518,-500.0,0.00021917,2]
[325433034,1714883446527,-500.0,0.00021917,2]
[325433036,1714883446537,-500.0,0.00021917,2]
[325433038,1714883446546,-500.0,0.00021917,2]
[325433040,1714883446555,-500.0,0.00021917,2]
[325433042,1714883446565,-500.0,0.00021917,2]
[325433044,1714883446574,-500.0,0.00021917,2]
[325433046,1714883446583,-507.19755292,0.00021917,2]
[325433048,1714883446592,-500.0,0.00021917,2]
[325433050,1714883446601,-500.0,0.00021917,2]
[325433052,1714883446610,-500.0,0.00021917,2]
[325433054,1714883446619,-500.0,0.00021917,2]
[325433056,1714883446628,-500.0,0.00021917,2]
[325433058,1714883446637,-500.0,0.00021917,2]
[325433060,1714883446646,-500.0,0.00021917,2]
[325433061,1714883446655,-500.0,0.00021917,2]
[325433063,1714883446665,-500.0,0.00021917,2]
[325433066,1714883446675,-500.0,0.00021917,2]
[325433068,1714883446684,-500.0,0.00021917,2]
[325433070,1714883446693,-500.0,0.00021917,2]
[325433071,1714883446703,-500.0,0.00021917,2]
[325433074,1714883446712,-500.0,0.00021917,2]
[325433076,1714883446722,-500.0,0.00021917,2]
[325433077,1714883446731,-500.0,0.00021917,2]
[325433079,1714883446741,-500.0,0.00021917,2]
[325433082,1714883446750,-500.0,0.00021917,2]
[325433083,1714883446759,-500.0,0.00021917,2]
[325433085,1714883446769,-500.0,0.00021917,2]
[325433087,1714883446779,-504.56926116,0.00021917,2]
[325433090,1714883446789,-500.0,0.00021917,2]
[325433091,1714883446799,-500.0,0.00021917,2]
[325433093,1714883446808,-500.0,0.00021917,2]
[325433095,1714883446817,-500.0,0.00021917,2]
[325433097,1714883446827,-500.0,0.00021917,2]
[325433099,1714883446836,-500.0,0.00021917,2]
[325433101,1714883446845,-469.34943926,0.00021917,2]
[325433103,1714883446854,-500.0,0.00021917,2]
[325433105,1714883446864,-534.62,0.00021917,2]
[325433107,1714883446874,-500.0,0.00021917,2]
[325433109,1714883446884,-500.0,0.00021917,2]
[325433111,1714883446893,-999.95,0.00021917,2]
[325433113,1714883446903,-500.0,0.00021917,2]
[325433116,1714883446914,-500.0,0.00021917,2]
[325433117,1714883446925,-500.0,0.00021917,2]
[325433120,1714883446935,-500.0,0.00021917,2]
[325433122,1714883446945,-500.0,0.00021917,2]
[325433123,1714883446955,-500.0,0.00021917,2]
[325433125,1714883446966,-500.0,0.00021917,2]
[325433127,1714883446975,-500.0,0.00021917,2]
[325433129,1714883446984,-522.36,0.00021917,2]
[325433131,1714883446994,-500.0,0.00021917,2]
[325433133,1714883447003,-500.0,0.00021917,2]
[325433135,1714883447012,-437.88879164,0.00021917,2]
[325433137,1714883447021,-500.0,0.00021917,2]
[325433139,1714883447031,-500.0,0.00021917,2]
[325433141,1714883447041,-588.02491277,0.00021917,2]
[325433143,1714883447051,-500.0,0.00021917,2]
[325433145,1714883447060,-521.72530344,0.00021917,2]
[325433147,1714883447069,-500.0,0.00021917,2]
[325433149,1714883447078,-500.0,0.00021917,2]
[325433151,1714883447087,-511.85632889,0.00021917,2]
[325433153,1714883447096,-514.04524402,0.00021917,2]
[325433156,1714883447106,-500.0,0.00021917,2]
[325433157,1714883447116,-500.0,0.00021917,2]
[325433159,1714883447125,-500.0,0.00021917,2]
[325433161,1714883447135,-506.86759074,0.00021917,2]
[325433163,1714883447143,-500.0,0.00021917,2]
[325433165,1714883447153,-500.0,0.00021917,2]
[325433167,1714883447162,-500.0,0.00021917,2]
[325433169,1714883447172,-734.34,0.00021917,2]
[325433172,1714883447181,-500.0,0.00021917,2]
[325433174,1714883447190,-500.0,0.00021917,2]
[325433176,1714883447200,-500.0,0.00021917,2]
[325433177,1714883447209,-500.0,0.00021917,2]
[325433179,1714883447218,-553.54,0.00021917,2]
[325433181,1714883447228,-500.0,0.00021917,2]
[325433183,1714883447237,-500.0,0.00021917,2]
[325433185,1714883447247,-1163.16,0.00021917,2]
[325433187,1714883447256,-500.0,0.00021917,2]
[325433189,1714883447265,-342.7189544,0.00021917,2]
[325433191,1714883447275,-391.91470065,0.00021917,2]
[325433193,1714883447284,-500.0,0.00021917,2]
[325433195,1714883447294,-500.0,0.00021917,2]
[325433197,1714883447303,-677.47,0.00021917,2]
[325433199,1714883447312,-500.0,0.00021917,2]
[325433201,1714883447322,-664.72,0.00021917,2]
[325433203,1714883447331,-500.0,0.00021917,2]
[325433205,1714883447340,-500.0,0.00021917,2]
[325433207,1714883447349,-500.0,0.00021917,2]
[325433209,1714883447358,-606.93328813,0.00021917,2]
[325433211,1714883447367,-500.0,0.00021917,2]
[325433213,1714883447377,-647.41,0.00021917,2]
[325433215,1714883447386,-500.0,0.00021917,2]
[325433217,1714883447395,-500.0,0.00021917,2]
[325433219,1714883447404,-500.0,0.00021917,2]
[325433221,1714883447413,-500.0,0.00021917,2]
[325433223,1714883447422,-500.0,0.00021917,2]
[325433225,1714883447432,-244.21832923,0.00021917,2]
[325433227,1714883447443,-500.0,0.00021917,2]
[325433229,1714883447453,-500.35340249,0.00021917,2]
[325433231,1714883447462,-500.0,0.00021917,2]
[325433233,1714883447471,-500.0,0.00021917,2]
[325433235,1714883447482,-511.89976159,0.00021917,2]
[325433238,1714883447492,-187.58239323,0.00021917,2]
[325433240,1714883447501,-500.0,0.00021917,2]
[325433242,1714883447515,-273.98500666,0.00021917,2]
[325433244,1714883447524,-500.0,0.00021917,2]
[325433245,1714883447534,-500.0,0.00021917,2]
[325433246,1714883447543,-500.0,0.00021917,2]
[325433247,1714883447552,-500.0,0.00021917,2]
[325433248,1714883447562,-517.75827494,0.00021917,2]
[325433255,1714883447669,-500.0,0.00021917,2]
[325433257,1714883447679,-500.0,0.00021917,2]
[325433259,1714883447689,-500.0,0.00021917,2]
[325433261,1714883447699,-500.0,0.00021917,2]
[325433262,1714883447708,-500.0,0.00021917,2]
[325433265,1714883447719,-501.06623921,0.00021917,2]
[325433266,1714883447729,-300.0,0.00021917,2]
[325433269,1714883447739,-1149.72,0.00021917,2]
[325433270,1714883447748,-500.0,0.00021917,2]
[325433272,1714883447758,-500.0,0.00021917,2]
[325433274,1714883447768,-407.09365524,0.00021917,2]
[325433276,1714883447779,-500.0,0.00021917,2]
[325433278,1714883447788,-500.0,0.00021917,2]
[325433280,1714883447798,-500.0,0.00021917,2]
[325433283,1714883447808,-505.35423306,0.00021917,2]
[325433284,1714883447818,-500.0,0.00021917,2]
[325433286,1714883447827,-500.0,0.00021917,2]
[325433288,1714883447839,-683.49,0.00021917,2]
[325433291,1714883447848,-500.0,0.00021917,2]
[325433293,1714883447858,-500.0,0.00021917,2]
[325433295,1714883447867,-500.0,0.00021917,2]
[325433296,1714883447876,-500.0,0.00021917,2]
[325433298,1714883447886,-500.0,0.00021917,2]
[325433300,1714883447895,-500.0,0.00021917,2]
[325433303,1714883447904,-513.90553937,0.00021917,2]
[325433305,1714883447914,-500.0,0.00021917,2]
[325433306,1714883447923,-500.0,0.00021917,2]
[325433308,1714883447932,-1177.22,0.00021917,2]
[325433310,1714883447942,-500.0,0.00021917,2]
[325433313,1714883447952,-620.04,0.00021917,2]
[325433315,1714883447962,-500.0,0.00021917,2]
[325433317,1714883447971,-500.0,0.00021917,2]
[325433319,1714883447980,-1060.51,0.00021917,2]
[325433321,1714883447989,-904.73,0.00021917,2]
[325433323,1714883447999,-491.78109955,0.00021917,2]
[325433325,1714883448009,-500.0,0.00021917,2]
[325433327,1714883448019,-500.0,0.00021917,2]
[325433329,1714883448029,-500.0,0.00021917,2]
[325433331,1714883448038,-500.0,0.00021917,2]
[325433333,1714883448047,-500.0,0.00021917,2]
[325433334,1714883448058,-500.0,0.00021917,2]
[325433336,1714883448069,-1904.09,0.00021917,2]
[325433338,1714883448078,-300.0,0.00021917,2]
[325433341,1714883448088,-500.0,0.00021917,2]
[325433343,1714883448098,-377.91371774,0.00021917,2]
[325433344,1714883448107,-192.88610381,0.00021917,2]
[325433694,1714884434153,-150.0,0.00019817,2]
[325433695,1714884434173,-9964.9621514,0.00020036,2]
[325433696,1714884434192,-493.0,0.00020648,2]
[325433697,1714884434212,-150.0,0.00020648,2]
[325433698,1714884434231,-602.13126,0.00021,2]
[325433699,1714884434252,-5000.0,0.00021,2]
[325433700,1714884434270,-602.13126,0.00021077,2]
[325433701,1714884434289,-602.13126,0.00021154,2]
[325433702,1714884434307,-602.13126,0.00021231,2]
[325433703,1714884434325,-602.13126,0.00021308,2]
[325433704,1714884434345,-602.13126,0.00021385,2]
[325433705,1714884434363,-602.13126,0.00021462,2]
[325433706,1714884434383,-602.13126,0.00021538,2]
[325433707,1714884434404,-602.13126,0.00021615,2]
[325433708,1714884434422,-602.13126,0.00021692,2]
[325433709,1714884434441,-602.13126,0.00021769,2]
[325433710,1714884434460,-347.48520474,0.00021817,2]
[325433711,1714884434478,-602.13126,0.00021846,2]
[325433712,1714884434497,-347.4852047,0.00021855,2]
[325433713,1714884434517,-347.4852047,0.00021892,2]
[325433714,1714884434535,-170.00563503,0.00021915,2]
[325433715,1714884434554,-500.0,0.00021916,2]
[325433716,1714884434573,-500.0,0.00021916,2]
[325433717,1714884434593,-235.0,0.00021916,2]
[325433718,1714884434613,-500.0,0.00021916,2]
[325433719,1714884434636,-500.0,0.00021916,2]
[325433720,1714884434656,-500.0,0.00021916,2]
[325433721,1714884434675,-500.0,0.00021916,2]
[325433722,1714884434696,-500.0,0.00021916,2]
[325433723,1714884434716,-500.0,0.00021916,2]
[325433724,1714884434740,-500.0,0.00021916,2]
[325433725,1714884434759,-500.0,0.00021916,2]
[325433726,1714884434780,-500.0,0.00021916,2]
[325433727,1714884434800,-500.0,0.00021916,2]
[325433728,1714884434821,-500.0,0.00021916,2]
[325433729,1714884434841,-500.0,0.00021916,2]
[325433730,1714884434860,-500.0,0.00021916,2]
[325433731,1714884434880,-350.46511693,0.00021917,2]
[325433732,1714884434899,-500.0,0.00021917,2]
[325433733,1714884434918,-500.0,0.00021917,2]
[325433734,1714884434937,-500.0,0.00021917,2]
[325433735,1714884434956,-154.95846052,0.00021917,2]
[325433736,1714884434974,-729.98,0.00021917,2]
[325433737,1714884434994,-500.0,0.00021917,2]
[325433738,1714884435014,-500.0,0.00021917,2]
[325433739,1714884435034,-506.40658211,0.00021917,2]
[325433740,1714884435055,-500.0,0.00021917,2]
[325433741,1714884435075,-500.0,0.00021917,2]
[325433742,1714884435094,-501.49097521,0.00021917,2]
[325433743,1714884435114,-500.0,0.00021917,2]
[325433744,1714884435134,-500.57337492,0.00021917,2]
[325433745,1714884435154,-464.15282679,0.00021917,2]
[325433746,1714884435174,-501.37180829,0.00021917,2]
[325433747,1714884435193,-500.0,0.00021917,2]
[325433748,1714884435212,-500.0,0.00021917,2]
[325433749,1714884435232,-500.0,0.00021917,2]
[325433750,1714884435251,-500.0,0.00021917,2]
[325433751,1714884435270,-246.41576824,0.00021917,2]
[325433752,1714884435289,-500.0,0.00021917,2]
[325433753,1714884435418,-500.0,0.00021917,2]
[325433754,1714884435438,-500.69858221,0.00021917,2]
[325433755,1714884435458,-500.0,0.00021917,2]
[325433756,1714884435477,-500.0,0.00021917,2]
[325433757,1714884435498,-265.49792789,0.00021917,2]
[325433758,1714884435518,-500.0,0.00021917,2]
[325433759,1714884435537,-500.0,0.00021917,2]
[325433760,1714884435557,-500.0,0.00021917,2]
[325433761,1714884435576,-530.47,0.00021917,2]
[325433762,1714884435596,-958.29,0.00021917,2]
[325433763,1714884435616,-500.0,0.00021917,2]
[325433764,1714884435636,-500.0,0.00021917,2]
[325433765,1714884435656,-500.0,0.00021917,2]
[325433766,1714884435675,-503.12386799,0.00021917,2]
[325433767,1714884435694,-500.59,0.00021917,2]
[325433768,1714884435712,-500.0,0.00021917,2]
[325433769,1714884435731,-500.0,0.00021917,2]
[325433770,1714884435753,-346.75167544,0.00021917,2]
[325433771,1714884435772,-703.74,0.00021917,2]
[325433772,1714884435792,-505.20788225,0.00021917,2]
[325433773,1714884435811,-503.06281862,0.00021917,2]
[325433774,1714884435833,-502.80278747,0.00021917,2]
[325433775,1714884435852,-500.0,0.00021917,2]
[325433776,1714884435871,-500.0,0.00021917,2]
[325433777,1714884435891,-500.0,0.00021917,2]
[325433778,1714884435915,-500.0,0.00021917,2]
[325433779,1714884435934,-523.24545658,0.00021917,2]
[325433780,1714884435954,-500.0,0.00021917,2]
[325433781,1714884435974,-501.61751701,0.00021917,2]
[325433782,1714884435994,-1101.82,0.00021917,2]
[325433783,1714884436014,-503.78471779,0.00021917,2]
[325433784,1714884436037,-502.20935203,0.00021917,2]
[325433785,1714884436057,-501.91601233,0.00021917,2]
[325433786,1714884436080,-3119.45259952,0.00021917,2]
[325433787,1714884436099,-1114.7,0.00021917,2]
[325433788,1714884436118,-500.0,0.00021917,2]
[325433789,1714884436137,-500.0,0.00021917,2]
[325433790,1714884436157,-502.98031564,0.00021917,2]
[325433791,1714884436181,-500.0,0.00021917,2]
[325433792,1714884436200,-500.0,0.00021917,2]
[325433793,1714884436219,-500.0,0.00021917,2]
[325433794,1714884436240,-637.02,0.00021917,2]
[325433795,1714884436260,-500.0,0.00021917,2]
[325433796,1714884436280,-502.44561735,0.00021917,2]
[325433797,1714884436299,-500.0,0.00021917,2]
[325433798,1714884436319,-503.64196381,0.00021917,2]
[325433799,1714884436339,-500.0,0.00021917,2]
[325433800,1714884436359,-500.0,0.00021917,2]
[325433801,1714884436381,-1128.17,0.00021917,2]
[325433802,1714884436400,-500.0,0.00021917,2]
[325433803,1714884436420,-500.0,0.00021917,2]
[325433804,1714884436440,-500.0,0.00021917,2]
[325433805,1714884436461,-500.0,0.00021917,2]
[325433806,1714884436480,-502.7065139,0.00021917,2]
[325433807,1714884436500,-500.0,0.00021917,2]
[325433808,1714884436520,-524.45832246,0.00021917,2]
[325433809,1714884436540,-300.0,0.00021917,2]
[325433810,1714884436560,-501.93301413,0.00021917,2]
[325433811,1714884436579,-500.0,0.00021917,2]
[325433812,1714884436599,-504.87058978,0.00021917,2]
[325433813,1714884436619,-501.23248872,0.00021917,2]
[325433814,1714884436639,-514.23391236,0.00021917,2]
[325433815,1714884436659,-500.0,0.00021917,2]
[325433816,1714884436680,-3736.39,0.00021917,2]
[325433817,1714884436700,-503.38419809,0.00021917,2]
[325433818,1714884436720,-500.0,0.00021917,2]
[325433819,1714884436744,-500.0,0.00021917,2]
[325433820,1714884436764,-500.0,0.00021917,2]
[325433821,1714884436786,-818.22,0.00021917,2]
[325433822,1714884436806,-500.0,0.00021917,2]
[325433823,1714884436826,-500.0,0.00021917,2]
[325433824,1714884436846,-500.0,0.00021917,2]
[325433825,1714884436867,-500.0,0.00021917,2]
[325433826,1714884436886,-567.98,0.00021917,2]
[325433827,1714884436907,-500.0,0.00021917,2]
[325433828,1714884436927,-500.0,0.00021917,2]
[325433829,1714884436947,-500.0,0.00021917,2]
[325433830,1714884436967,-500.0,0.00021917,2]
[325433831,1714884436988,-500.0,0.00021917,2]
[325433832,1714884437008,-508.31573488,0.00021917,2]
[325433833,1714884437029,-500.0,0.00021917,2]
[325433834,1714884437048,-520.19512584,0.00021917,2]
[325433835,1714884437068,-594.21,0.00021917,2]
[325433836,1714884437088,-500.0,0.00021917,2]
[325433837,1714884437108,-500.0,0.00021917,2]
[325433838,1714884437128,-500.0,0.00021917,2]
[325433839,1714884437148,-500.0,0.00021917,2]
[325433840,1714884437167,-500.0,0.00021917,2]
[325433841,1714884437284,-500.0,0.00021917,2]
[325433842,1714884437305,-500.0,0.00021917,2]
[325433843,1714884437326,-1994.53,0.00021917,2]
[325433844,1714884437346,-500.0,0.00021917,2]
[325433845,1714884437367,-410.87126706,0.00021917,2]
[325433846,1714884448092,-170.00563503,0.0002,2]
[325433847,1714884448113,-479.27369389,0.00021916,2]
[325433848,1714884448134,-89.12873294,0.00021917,2]
[325433849,1714884448154,-500.0,0.00021917,2]
[325433850,1714884448174,-300.0,0.00021917,2]
[325433851,1714884448194,-500.0,0.00021917,2]
[325433852,1714884448214,-615.15,0.00021917,2]
[325433853,1714884448234,-500.0,0.00021917,2]
[325433854,1714884448254,-500.0,0.00021917,2]
[325433855,1714884448274,-500.0,0.00021917,2]
[325433856,1714884448293,-500.0,0.00021917,2]
[325433857,1714884448313,-1431.67,0.00021917,2]
[325433858,1714884448332,-500.0,0.00021917,2]
[325433859,1714884448462,-419.91834364,0.00021917,2]
[325433860,1714884448482,-500.0,0.00021917,2]
[325433861,1714884448502,-500.0,0.00021917,2]
[325433862,1714884448521,-500.0,0.00021917,2]
[325433863,1714884448541,-894.47,0.00021917,2]
[325433864,1714884448561,-500.0,0.00021917,2]
[325433865,1714884448582,-460.89062907,0.00021917,2]
[325433866,1714884448602,-500.0,0.00021917,2]
[325433867,1714884448624,-500.0,0.00021917,2]
[325433868,1714884448644,-500.0,0.00021917,2]
[325433869,1714884448664,-502.3573742,0.00021917,2]
[325433870,1714884448684,-184.90232706,0.00021917,2]
[325433871,1714884448704,-500.0,0.00021917,2]
[325433872,1714884448724,-500.0,0.00021917,2]
[325433873,1714884448744,-500.0,0.00021917,2]
[325433874,1714884448765,-500.0,0.00021917,2]
[325433875,1714884448787,-500.0,0.00021917,2]
[325433876,1714884448806,-500.0,0.00021917,2]
[325433877,1714884448826,-500.0,0.00021917,2]
[325433878,1714884448846,-500.0,0.00021917,2]
[325433879,1714884448865,-500.0,0.00021917,2]
[325433880,1714884448884,-500.0,0.00021917,2]
[325433881,1714884448903,-500.0,0.00021917,2]
[325433882,1714884448924,-500.0,0.00021917,2]
[325433883,1714884448944,-500.0,0.00021917,2]
[325433884,1714884448964,-500.0,0.00021917,2]
[325433885,1714884448984,-515.1682929,0.00021917,2]
[325433886,1714884449004,-500.0,0.00021917,2]
[325433887,1714884449024,-500.0,0.00021917,2]
[325433888,1714884449045,-500.0,0.00021917,2]
[325433889,1714884449065,-500.0,0.00021917,2]
[325433890,1714884449086,-501.54729623,0.00021917,2]
[325433891,1714884449106,-500.0,0.00021917,2]
[325433892,1714884449127,-500.0,0.00021917,2]
[325433893,1714884449147,-621.98,0.00021917,2]
[325433894,1714884449166,-501.9719702,0.00021917,2]
[325433895,1714884449187,-500.0,0.00021917,2]
[325433896,1714884449208,-500.0,0.00021917,2]
[325433897,1714884449228,-1000.0,0.00021917,2]
[325433898,1714884449252,-500.0,0.00021917,2]
[325433899,1714884449283,-500.0,0.00021917,2]
[325433900,1714884449312,-500.0,0.00021917,2]
[325433901,1714884449345,-500.0,0.00021917,2]
[325433902,1714884449375,-152.9289181,0.00021917,2]
[325433903,1714884449405,-500.0,0.00021917,2]
[325433904,1714884449431,-500.0,0.00021917,2]
[325433905,1714884449459,-500.0,0.00021917,2]